[Event "2nd Cambridge Open 2024"]
[Site "Cambridge"]
[Date "2024.02.19"]
[Round "2.28"]
[White "Homer, Stephen J"]
[Black "Lenton, Oliver J"]
[Result "1-0"]
[ECO "B07"]
[WhiteElo "2045"]
[BlackElo "1787"]
[Annotator "RC"]
[PlyCount "55"]
[EventDate "2024.02.18"]
[EventType "swiss"]
[EventCountry "ENG"]
[SourceTitle "playchess.com"]
[Source "ChessBase"]
[SourceQuality "1"]
[TimeControl "5400+30"]

1. e4 {[%emt 0:00:02]} d6 {[%emt 0:00:08]} 2. d4 {[%emt 0:00:04]} Nf6 {[%emt 0:00:04]} 3. Nc3 {[%emt 0:00:03]} Nbd7 {[%emt 0:00:06]} 4. f4 {[%emt 0:00:05]} e5 {[%emt 0:00:05]} 5. Nf3 {[%emt 0:00:04]} exd4 {[%emt 0:00:05]} 6. Qxd4 {[%emt 0:00:05]} c6 {[%emt 0:00:23]} 7. Bd2 {[%emt 0:05:01]} d5 {[%emt 0:00:07]} 8. exd5 {[%emt 0:04:42]} Bc5 {[%emt 0:00:18]} 9. Qd3 {[%emt 0:00:51]} O-O {[%emt 0:03:10]} 10. O-O-O {[%emt 0:00:41]} Qc7 {[%emt 0:08:16]} 11. Ng5 {[%emt 0:15:12]} Bd6 {[%emt 0:05:19]} 12. g3 {[%emt 0:00:50]} Nc5 {[%emt 0:03:20]} 13. Qd4 {[%emt 0:03:14]} Bf5 {[%emt 0:23:51]} 14. Bg2 {[%emt 0:08:54]} cxd5 {[%emt 0:00:59]} 15. Bxd5 {[%emt 0:09:20]} Rad8 {[%emt 0:06:01]} 16. Qc4 {[%emt 0:08:02]} Nxd5 {[%emt 0:14:47]} 17. Nxd5 {[%emt 0:04:12]} Qc6 {[%emt 0:08:26]} 18. Ne3 {[%emt 0:02:06]} b5 {[%emt 0:02:02]} 19. Qf1 {[%emt 0:09:58]} Rc8 {[%emt 0:08:16]} 20. Bc3 {[%emt 0:08:58]} Bd7 {[%emt 0:07:18]} 21. Qf3 {[%emt 0:10:58]} b4 {[%emt 0:01:25]} 22. Be5 {[%emt 0:04:25]} Bxe5 {[%emt 0:00:43]} 23. fxe5 {[%emt 0:00:02]} h6 {[%emt 0:01:51]} 24. Rd6 {[%emt 0:00:51]} Qa4 {[%emt 0:03:11]} 25. Nd5 {[%emt 0:01:43]} Bg4 {[%emt 0:01:27]} 26. Ne7+ {[%emt 0:00:37]} Kh8 {[%emt 0:00:01]} 27. Rxh6+ {[%emt 0:00:10]} gxh6 {[%emt 0:00:11]} 28. Qf6# {[%emt 0:00:05]} 1-0

[Event "2nd Cambridge Open 2024"]
[Site "Cambridge"]
[Date "2024.02.19"]
[Round "2.29"]
[White "Zhang, Junyi"]
[Black "Pert, Max"]
[Result "1/2-1/2"]
[ECO "B13"]
[WhiteElo "1655"]
[BlackElo "1950"]
[Annotator "NA RC"]
[PlyCount "59"]
[EventDate "2024.02.18"]
[EventType "swiss"]
[EventCountry "ENG"]
[SourceTitle "playchess.com"]
[Source "ChessBase"]
[SourceQuality "1"]
[TimeControl "5400+30"]

1. e4 {[%emt 0:00:23]} c6 {[%emt 0:00:20]} 2. d4 {[%emt 0:00:27]} d5 {[%emt 0:00:15]} 3. exd5 {[%emt 0:00:23]} cxd5 {[%emt 0:00:10]} 4. Bd3 {[%emt 0:00:15]} Nc6 {[%emt 0:00:50]} 5. c3 {[%emt 0:01:58]} Qc7 {[%emt 0:00:55]} 6. h3 {[%emt 0:00:18]} e5 {[%emt 0:01:23]} 7. dxe5 {[%emt 0:02:27]} Nxe5 {[%emt 0:00:20]} 8. Nf3 {[%emt 0:00:14]} Nxd3+ {[%emt 0:02:12]} 9. Qxd3 {[%emt 0:00:08]} Nf6 {[%emt 0:01:47]} 10. O-O {[%emt 0:01:39]} Be7 {[%emt 0:03:11]} 11. Bg5 {[%emt 0:02:32]} O-O {[%emt 0:06:01]} 12. Nbd2 {[%emt 0:04:39]} Be6 {[%emt 0:02:15]} 13. Rfe1 {[%emt 0:02:38]} h6 {[%emt 0:08:05]} 14. Bh4 {[%emt 0:01:57]} Rae8 {[%emt 0:05:19]} 15. Nd4 {[%emt 0:01:15]} Bd8 {[%emt 0:02:21]} 16. a4 {[%emt 0:06:17]} Nh5 {[%emt 0:04:26]} 17. Bxd8 {[%emt 1:11:30]} Qxd8 {[%emt 0:00:46]} 18. Re5 {[%emt 0:00:00]} Nf4 {[%emt 0:04:17]} 19. Qg3 {[%emt 0:00:00]} Qf6 {[%emt 0:03:20]} 20. Rae1 {[%emt 0:00:00]} Bd7 {[%emt 0:02:47]} 21. Rxe8 {[%emt 0:00:00]} Rxe8 {[%emt 0:00:08]} 22. Rxe8+ {[%emt 0:00:00]} Bxe8 {[%emt 0:00:08]} 23. b3 {[%emt 0:03:00]} Qxd4 {[%emt 0:02:37]} 24. cxd4 {[%emt 0:00:00]} Ne2+ {[%emt 0:00:05]} 25. Kh2 {[%emt 0:00:00]} Nxg3 {[%emt 0:00:06]} 26. Kxg3 {[%emt 0:00:00]} f6 {[%emt 0:00:33]} 27. Nb1 {[%emt 0:00:00]} Kf7 {[%emt 0:00:41]} 28. Nc3 {[%emt 0:00:00]} Ke6 {[%emt 0:00:24]} 29. Kf3 {[%emt 0:00:00]} a5 {[%emt 0:01:29]} 30. Ke3 {[%emt 0:00:00]} 1/2-1/2

[Event "2nd Cambridge Open 2024"]
[Site "Cambridge"]
[Date "2024.02.19"]
[Round "2.30"]
[White "OShea, Colm"]
[Black "Rushbrooke, Remy"]
[Result "0-1"]
[ECO "C43"]
[WhiteElo "1729"]
[BlackElo "2049"]
[Annotator "RC"]
[PlyCount "74"]
[EventDate "2024.02.18"]
[EventType "swiss"]
[EventCountry "ENG"]
[SourceTitle "playchess.com"]
[Source "ChessBase"]
[SourceQuality "1"]
[TimeControl "5400+30"]

1. e4 {[%emt 0:00:01]} e5 {[%emt 0:00:07]} 2. Nf3 {[%emt 0:00:03]} Nf6 {[%emt 0:00:04]} 3. d4 {[%emt 0:00:09]} Nxe4 {[%emt 0:00:06]} 4. Bd3 {[%emt 0:00:04]} d5 {[%emt 0:00:04]} 5. Nxe5 {[%emt 0:00:11]} Nd7 {[%emt 0:00:03]} 6. Nxd7 {[%emt 0:00:08]} Bxd7 {[%emt 0:00:04]} 7. Nc3 {[%emt 0:00:41]} Nxc3 {[%emt 0:00:05]} 8. bxc3 {[%emt 0:00:03]} Bd6 {[%emt 0:00:42]} 9. Qh5 {[%emt 0:00:38]} Qe7+ {[%emt 0:10:54]} 10. Be3 {[%emt 0:00:08]} Be6 {[%emt 0:03:59]} 11. Bg5 {[%emt 0:06:29]} Qf8 {[%emt 0:02:56]} 12. O-O {[%emt 0:02:54]} h6 {[%emt 0:00:03]} 13. Bd2 {[%emt 0:04:13]} O-O-O {[%emt 0:02:30]} 14. Rab1 {[%emt 0:00:53]} Qe8 {[%emt 0:03:10]} 15. f4 {[%emt 0:06:38]} f5 {[%emt 0:07:02]} 16. Qf3 {[%emt 0:01:05]} g5 {[%emt 0:05:48]} 17. g3 {[%emt 0:07:29]} g4 {[%emt 0:01:32]} 18. Qg2 {[%emt 0:01:09]} Qf7 {[%emt 0:02:17]} 19. c4 {[%emt 0:04:12]} c5 {[%emt 0:00:44]} 20. Be3 {[%emt 0:05:52]} cxd4 {[%emt 0:00:15]} 21. Bxd4 {[%emt 0:00:35]} dxc4 {[%emt 0:00:05]} 22. Be2 {[%emt 0:14:04]} Bd5 {[%emt 0:00:08]} 23. Qf2 {[%emt 0:00:34]} Bc6 {[%emt 0:01:17]} 24. Bxh8 {[%emt 0:04:20]} Qd5 {[%emt 0:01:27]} 25. Bf3 {[%emt 0:00:36]} gxf3 {[%emt 0:00:39]} 26. Bd4 {[%emt 0:02:40]} Bxf4 {[%emt 0:02:02]} 27. c3 {[%emt 0:03:58]} Rg8 {[%emt 0:03:47]} 28. Rbd1 {[%emt 0:15:43]} Bxg3 {[%emt 0:01:50]} 29. hxg3 {[%emt 0:08:27]} f4 {[%emt 0:00:05]} 30. Bf6 {[%emt 0:00:22]} Rxg3+ {[%emt 0:03:23]} 31. Qxg3 {[%emt 0:00:56]} f2+ {[%emt 0:00:06]} 32. Kxf2 {[%emt 0:01:36]} fxg3+ {[%emt 0:00:01]} 33. Kxg3 {[%emt 0:00:14]} Qg2+ {[%emt 0:00:07]} 34. Kf4 {[%emt 0:01:56]} Qe4+ {[%emt 0:02:01]} 35. Kg3 {[%emt 0:00:13]} Qe3+ {[%emt 0:00:33]} 36. Kg4 {[%emt 0:00:43]} Bg2 {[%emt 0:06:27]} 37. Rfe1 {[%emt 0:04:57]} Qf3+ {[%emt 0:00:11]} 0-1

[Event "2nd Cambridge Open 2024"]
[Site "Cambridge"]
[Date "2024.02.19"]
[Round "2.31"]
[White "Maton, Emily"]
[Black "Golubovic, Erik"]
[Result "0-1"]
[ECO "D02"]
[WhiteElo "1736"]
[BlackElo "2025"]
[Annotator "NA RC"]
[PlyCount "82"]
[EventDate "2024.02.18"]
[EventType "swiss"]
[EventCountry "ENG"]
[SourceTitle "playchess.com"]
[Source "ChessBase"]
[SourceQuality "1"]
[TimeControl "5400+30"]

1. d4 {[%emt 0:00:01]} Nf6 {[%emt 0:00:07]} 2. Nf3 {[%emt 0:00:03]} e6 {[%emt 0:00:13]} 3. Bf4 {[%emt 0:00:06]} d5 {[%emt 0:00:14]} 4. e3 {[%emt 0:00:07]} Bd6 {[%emt 0:00:23]} 5. Bg3 {[%emt 0:00:08]} O-O {[%emt 0:00:23]} 6. Nbd2 {[%emt 0:00:18]} c5 {[%emt 0:00:10]} 7. c3 {[%emt 0:00:17]} Qc7 {[%emt 0:00:37]} 8. Bd3 {[%emt 0:01:08]} Nbd7 {[%emt 0:00:19]} 9. O-O {[%emt 0:07:41]} e5 {[%emt 0:00:23]} 10. e4 {[%emt 0:07:46]} exd4 {[%emt 0:14:24]} 11. cxd4 {[%emt 0:00:51]} Bxg3 {[%emt 0:02:34]} 12. hxg3 {[%emt 0:01:00]} c4 {[%emt 0:04:53]} 13. Bc2 {[%emt 0:02:27]} dxe4 {[%emt 0:02:33]} 14. Nxe4 {[%emt 0:01:57]} Nxe4 {[%emt 0:00:07]} 15. Bxe4 {[%emt 0:00:08]} Nf6 {[%emt 0:00:10]} 16. Qc2 {[%emt 0:02:46]} h6 {[%emt 0:09:59]} 17. Bf5 {[%emt 0:02:07]} Rd8 {[%emt 0:00:59]} 18. Rfe1 {[%emt 0:02:48]} b5 {[%emt 0:04:37]} 19. Re2 {[%emt 0:04:46]} Bb7 {[%emt 0:03:19]} 20. Rd1 {[%emt 0:06:22]} Rd6 {[%emt 0:04:21]} 21. Ne5 {[%emt 0:07:20]} Rad8 {[%emt 0:01:23]} 22. Ng4 {[%emt 0:01:50]} Nxg4 {[%emt 0:03:33]} 23. Bxg4 {[%emt 0:00:06]} g6 {[%emt 0:00:58]} 24. Qc3 {[%emt 0:02:11]} h5 {[%emt 0:07:46]} 25. Bh3 {[%emt 0:02:28]} Rd5 {[%emt 0:02:52]} 26. Rde1 {[%emt 0:01:59]} Qc6 {[%emt 0:03:27]} 27. Re4 {[%emt 0:04:04]} Qf6 {[%emt 0:01:23]} 28. Rd1 {[%emt 0:05:41]} R5d6 {[%emt 0:05:21]} 29. Rf4 {[%emt 0:01:44]} Qg7 {[%emt 0:00:36]} 30. g4 {[%emt 0:02:00]} hxg4 {[%emt 0:02:44]} 31. Bxg4 {[%emt 0:02:27]} g5 {[%emt 0:02:52]} 32. Rf5 {[%emt 0:02:28]} Bc8 {[%emt 0:00:12]} 33. Qe3 {[%emt 0:00:49]} Bxf5 {[%emt 0:01:15]} 34. Bxf5 {[%emt 0:00:31]} Qf6 {[%emt 0:01:27]} 35. g4 {[%emt 0:01:05]} Kg7 {[%emt 0:05:22]} 36. Kg2 {[%emt 0:02:43]} a6 {[%emt 0:04:51]} 37. Rh1 {[%emt 0:00:38]} Rh8 {[%emt 0:00:29]} 38. Rxh8 {[%emt 0:00:18]} Kxh8 {[%emt 0:00:03]} 39. f4 {[%emt 0:01:36]} Qxd4 {[%emt 0:02:38]} 40. Qe8+ {[%emt 0:02:04]} Kg7 {[%emt 0:00:14]} 41. fxg5 {[%emt 0:00:40]} Qf4 {[%emt 0:00:59]} 0-1

[Event "2nd Cambridge Open 2024"]
[Site "Cambridge"]
[Date "2024.02.19"]
[Round "2.32"]
[White "Blauhut, Anna"]
[Black "Pert, Nina"]
[Result "0-1"]
[ECO "B13"]
[WhiteElo "1534"]
[BlackElo "1968"]
[Annotator "NA RC"]
[PlyCount "74"]
[EventDate "2024.02.18"]
[EventType "swiss"]
[EventCountry "ENG"]
[SourceTitle "playchess.com"]
[Source "ChessBase"]
[SourceQuality "1"]
[TimeControl "5400+30"]

1. e4 {[%emt 0:00:04]} c6 {[%emt 0:00:02]} 2. d4 {[%emt 0:00:14]} d5 {[%emt 0:00:03]} 3. exd5 {[%emt 0:00:17]} cxd5 {[%emt 0:00:04]} 4. Bd3 {[%emt 0:00:23]} Nc6 {[%emt 0:00:17]} 5. c3 {[%emt 0:00:28]} Qc7 {[%emt 0:00:20]} 6. h3 {[%emt 0:00:37]} e6 {[%emt 0:00:47]} 7. Ne2 {[%emt 0:02:22]} Bd6 {[%emt 0:00:09]} 8. O-O {[%emt 0:01:16]} Nf6 {[%emt 0:02:03]} 9. Nd2 {[%emt 0:02:59]} O-O {[%emt 0:01:30]} 10. Nf3 {[%emt 0:00:58]} Nd7 {[%emt 0:02:49]} 11. Bc2 {[%emt 0:05:38]} Re8 {[%emt 0:05:44]} 12. Ng3 {[%emt 0:10:07]} Nf8 {[%emt 0:04:50]} 13. Nh5 {[%emt 0:05:49]} Ng6 {[%emt 0:02:50]} 14. Ng5 {[%emt 0:04:44]} Qe7 {[%emt 0:13:55]} 15. Qd3 {[%emt 0:05:11]} Bd7 {[%emt 0:07:00]} 16. f4 {[%emt 0:06:07]} Na5 {[%emt 0:09:25]} 17. a4 {[%emt 0:02:24]} a6 {[%emt 0:01:02]} 18. Re1 {[%emt 0:01:08]} Qd8 {[%emt 0:06:08]} 19. Qf3 {[%emt 0:02:16]} Rc8 {[%emt 0:06:11]} 20. Nxg7 {[%emt 0:03:16]} Kxg7 {[%emt 0:03:06]} 21. Qh5 {[%emt 0:04:12]} Rh8 {[%emt 0:01:02]} 22. Nf3 {[%emt 0:01:24]} f6 {[%emt 0:07:13]} 23. f5 {[%emt 0:04:39]} exf5 {[%emt 0:00:48]} 24. Bh6+ {[%emt 0:00:09]} Kf7 {[%emt 0:07:39]} 25. Bxf5 {[%emt 0:01:40]} Re8 {[%emt 0:02:33]} 26. Bxg6+ {[%emt 0:04:36]} hxg6 {[%emt 0:00:07]} 27. Ng5+ {[%emt 0:00:45]} fxg5 {[%emt 0:00:28]} 28. Rf1+ {[%emt 0:00:08]} Bf4 {[%emt 0:02:08]} 29. Rxf4+ {[%emt 0:04:14]} gxf4 {[%emt 0:00:08]} 30. Qxd5+ {[%emt 0:00:08]} Re6 {[%emt 0:01:48]} 31. Rf1 {[%emt 0:01:32]} Kg8 {[%emt 0:03:22]} 32. Rxf4 {[%emt 0:01:28]} Qe7 {[%emt 0:02:16]} 33. Bg5 {[%emt 0:05:33]} Qd6 {[%emt 0:00:24]} 34. Qxa5 {[%emt 0:01:54]} Re1+ {[%emt 0:00:36]} 35. Rf1 {[%emt 0:01:01]} Rce8 {[%emt 0:01:30]} 36. Rxe1 {[%emt 0:01:27]} Rxe1+ {[%emt 0:00:05]} 37. Kf2 {[%emt 0:00:12]} Re8 {[%emt 0:00:14]} 0-1

[Event "2nd Cambridge Open 2024"]
[Site "Cambridge"]
[Date "2024.02.19"]
[Round "2.33"]
[White "Adams, Michael"]
[Black "Southcott-Moyers, Indy"]
[Result "1-0"]
[ECO "C65"]
[WhiteElo "2674"]
[BlackElo "2123"]
[Annotator "TA"]
[PlyCount "81"]
[EventDate "2024.02.18"]
[EventType "swiss"]
[EventCountry "ENG"]
[SourceTitle "playchess.com"]
[Source "ChessBase"]
[SourceQuality "1"]
[TimeControl "5400+30"]

{[%evp 9,81,16,22,16,16,9,18,15,25,9,18,9,22,26,39,36,47,21,33,33,37,33,31,30,31,28,31,25,26,39,32,41,45,38,38,44,43,39,59,56,50,57,54,54,57,56,61,57,60,49,70,73,92,85,101,97,97,95,95,89,89,95,422,403,461,442,394,371,403,402,402,388,370,355]} 1. e4 {[%emt 0:00:03]} e5 {[%emt 0:00:05]} 2. Nf3 {[%emt 0:00:06]} Nc6 {[%emt 0:00:05]} 3. Bb5 {[%emt 0:00:08]} Nf6 {[%emt 0:00:09]} 4. d3 {[%emt 0:00:05]} Bc5 {[%emt 0:01:21]} 5. Bxc6 {[%emt 0:00:17]} dxc6 {[%emt 0:01:41]} 6. Nbd2 {[%emt 0:00:08][%cal Od2c4]} (6. Nxe5 $2 {perishes.} Qd4 7. Qe2 Qxe5 $19) 6... Nd7 {[%emt 0:05:20]} 7. Nc4 {[%emt 0:00:41][%cal Oe1g1]} Qe7 {[%emt 0:01:55]} 8. O-O {[%emt 0:00:59] The position is equal.} O-O {[%emt 0:02:31]} 9. Re1 {[%emt 0:04:08]} Re8 {[%emt 0:06:09]} 10. c3 {[%emt 0:02:10]} f6 {[%emt 0:05:43]} 11. d4 {[%emt 0:02:25]} Bd6 {[%emt 0:03:35]} 12. b3 {[%emt 0:03:43]} Nb6 {[%emt 0:09:14][%cal Bd7b6,Bb6c4,Bc4d6,Bd6e4][%mdl 32]} 13. dxe5 {[%emt 0:13:04]} Nxc4 {[%emt 0:09:32]} 14. exd6 {[%emt 0:00:08]} Nxd6 {[%emt 0:00:06]} 15. e5 {[%emt 0:00:02]} fxe5 {[%emt 0:02:49]} 16. Rxe5 {[%emt 0:00:09]} (16. Nxe5 {is interesting.} Qf6 17. Qd4 Nf5 18. Qe4) 16... Qf8 {[%emt 0:01:41] Black is weak on the dark squares} 17. Rxe8 {[%emt 0:06:10]} Qxe8 {[%emt 0:00:36]} 18. Qd4 {[%emt 0:07:09] Wards off Bg4} Qe4 {[%emt 0:03:19]} 19. Qxe4 {[%emt 0:03:55]} Nxe4 {[%emt 0:00:10]} 20. c4 {[%emt 0:00:02]} Bg4 {[%emt 0:10:37]} 21. Ne1 {[%emt 0:12:00]} Bf5 {[%emt 0:05:13]} 22. f3 {[%emt 0:04:15]} Nc5 {[%emt 0:03:33]} 23. Be3 {[%emt 0:00:31]} Nd7 {[%emt 0:05:52]} 24. Rd1 {[%emt 0:02:13]} Be6 {[%emt 0:03:48]} 25. Nd3 {[%emt 0:02:15]} Kf7 {[%emt 0:00:39]} 26. Bf4 {[%emt 0:07:33]} Rc8 {[%emt 0:00:56]} 27. Kf2 {[%emt 0:03:22]} a5 {[%emt 0:02:12]} 28. g4 {[%emt 0:02:12]} a4 {[%emt 0:01:32]} 29. Kg3 {[%emt 0:05:10]} c5 {[%emt 0:05:44]} 30. Re1 {[%emt 0:03:41]} axb3 {[%emt 0:01:58]} 31. axb3 {[%emt 0:00:03]} b5 {[%emt 0:00:17]} 32. cxb5 {[%emt 0:03:47] White is more active.} Rb8 {[%emt 0:01:28]} 33. Bxc7 {[%emt 0:01:10]} Rxb5 {[%emt 0:00:06]} 34. Nf4 {[%emt 0:00:51]} Bxb3 {[%emt 0:06:08]} 35. Bd6 {[%emt 0:00:10] Threatens to win with Re7+.} Nf6 $2 {[%emt 0:00:47][%mdl 8192] Loses the game.} (35... Rb7 $16 {is tougher.}) 36. Re7+ $18 {[%emt 0:01:40]} Kg8 {[%emt 0:00:20] [#]} 37. g5 $1 {[%emt 0:00:42][%cal Bg4g5,Bg5f6][%mdl 32]} Rb6 {[%emt 0:00:36]} 38. Bc7 {[%emt 0:02:12] White is winning.} Kf8 {[%emt 0:00:58]} 39. Bxb6 {[%emt 0:00:42]} ({Don't play} 39. gxf6 Rxf6 40. Re5 Rc6) 39... Kxe7 {[%emt 0:00:09]} 40. Bxc5+ {[%emt 0:00:08]} ({Don't do} 40. gxf6+ Kxf6 41. Bxc5 g5) 40... Kf7 {[%emt 0:00:08]} 41. gxf6 {[%emt 0:00:04] Weighted Error Value: White=0.03 (flawless) /Black=0.25 (precise) .  Loses game:     	---       	Black=1      Inaccurate:     	White=1     	---        OK:         	White=18    	Black=10     Best:        	White=2     	Black=4      Strong:       	White=1     	---} 1-0

[Event "2nd Cambridge Open 2024"]
[Site "Cambridge"]
[Date "2024.02.19"]
[Round "2.34"]
[White "Davison, Chris"]
[Black "Sonis, Francesco"]
[Result "0-1"]
[ECO "B51"]
[WhiteElo "2013"]
[BlackElo "2573"]
[Annotator "TA"]
[PlyCount "94"]
[EventDate "2024.02.18"]
[EventType "swiss"]
[EventCountry "ENG"]
[SourceTitle "playchess.com"]
[Source "ChessBase"]
[SourceQuality "1"]
[TimeControl "5400+30"]

{[%evp 10,94,16,21,36,5,9,12,14,20,18,19,18,18,19,1,0,0,0,0,0,1,24,0,17,-1,20,18,31,-23,-22,-44,-31,-66,-66,-80,-69,-76,-80,-83,-85,-71,-77,-93,-80,-101,-91,-99,-102,-119,-113,-141,-154,-158,-149,-148,-132,-169,-160,-157,-159,-211,-208,-202,-213,-208,-216,-223,-187,-273,-190,-532,-519,-512,-524,-629,-623,-648,-651,-635,-625,-1183,-1197,-1214,-1205,-1131,-1118]} 1. e4 {[%emt 0:00:05]} c5 {[%emt 0:00:33]} 2. Nf3 {[%emt 0:00:08]} d6 {[%emt 0:00:07]} 3. Bb5+ {[%emt 0:00:05]} Nc6 {[%emt 0:00:15]} 4. O-O {[%emt 0:00:11]} Bd7 {[%emt 0:00:21]} 5. Re1 {[%emt 0:00:08]} a6 {[%emt 0:00:04]} 6. Bf1 {[%emt 0:00:04]} g6 {[%emt 0:00:04]} 7. h3 {[%emt 0:00:15]} Bg7 {[%emt 0:00:04]} 8. c3 {[%emt 0:00:14]} e5 {[%emt 0:00:05] The position is equal.} 9. Na3 {[%emt 0:00:34][%cal Od2d4]} Nge7 {[%emt 0:01:01]} 10. Nc2 {[%emt 0:00:30]} Qb6 {[%emt 0:03:03]} 11. Ne3 {[%emt 0:02:07]} O-O {[%emt 0:00:13]} 12. d4 {[%emt 0:07:28]} exd4 {[%emt 0:10:04]} 13. Nc4 {[%emt 0:01:24][%csl LRb6,LRd6]} Qc7 {[%emt 0:07:20] [#] Hoping for ...b5.} 14. Bf4 {[%emt 0:04:25]} Nc8 {[%emt 0:04:53]} 15. cxd4 {[%emt 0:01:31]} cxd4 {[%emt 0:00:53]} (15... b5 $5) 16. Rc1 {[%emt 0:18:20][%cal Ob2b4]} Be6 {[%emt 0:03:02]} 17. e5 {[%emt 0:02:05][%cal Rc4d6]} dxe5 {[%emt 0:08:23]} 18. Ncxe5 {[%emt 0:00:44]} Qb6 $1 {[%emt 0:01:25]} 19. Nc4 {[%emt 0:09:39]} (19. Nxc6 $14 bxc6 20. b3) 19... Qd8 $11 {[%emt 0:01:36]} 20. b3 {[%emt 0:07:04]} N8e7 {[%emt 0:08:50]} 21. Nce5 {[%emt 0:09:00]} Rc8 {[%emt 0:09:05]} 22. Qd2 {[%emt 0:02:01]} Nxe5 {[%emt 0:02:43]} 23. Bxe5 {[%emt 0:00:53]} Rxc1 {[%emt 0:02:58]} 24. Rxc1 {[%emt 0:00:22]} Bxe5 {[%emt 0:00:30]} 25. Nxe5 {[%emt 0:00:07]} Qd6 {[%emt 0:00:04]} 26. Nf3 {[%emt 0:00:45]} Nc6 {[%emt 0:02:29]} 27. Rd1 {[%emt 0:07:27][%cal Od2h6]} Rd8 {[%emt 0:00:05]} 28. Qh6 {[%emt 0:04:18]} f6 {[%emt 0:00:35] Inhibits Ng5.} 29. Qh4 {[%emt 0:04:54]} Kg7 {[%emt 0:00:19]} 30. Nd2 {[%emt 0:06:17]} Bf5 {[%emt 0:01:32]} 31. Nc4 {[%emt 0:01:49]} Qe7 {[%emt 0:00:09]} 32. Qf4 {[%emt 0:01:17]} b5 {[%emt 0:04:29]} 33. Nd2 {[%emt 0:00:15]} Bc2 {[%emt 0:01:02]} 34. Rc1 {[%emt 0:00:29] [#]} g5 $1 {[%emt 0:02:16] Black is more active.} 35. Qg3 {[%emt 0:02:01]} (35. Qf3 $17 {was necessary.} Ne5 36. Qg3) 35... d3 $19 {[%emt 0:00:07]} 36. f4 {[%emt 0:03:33]} Qd6 {[%emt 0:02:03][%cal Od8e8]} 37. Kh2 {[%emt 0:00:41]} Nb4 {[%emt 0:02:08]} 38. fxg5 {[%emt 0:01:19]} fxg5 {[%emt 0:00:57]} 39. a3 {[%emt 0:00:43]} (39. Qxd6 $142 Rxd6 40. a3) 39... Nc6 {[%emt 0:00:40][%cal Bb4c6,Bc6e5,Be5c4,Bc4d2,Bd2e4,Be4c3][%mdl 32]} 40. b4 $2 {[%emt 0:01:04]} (40. Qxd6 {nothing else works.} Rxd6 41. Re1) 40... Qxg3+ {[%emt 0:01:32] Black is clearly winning.} 41. Kxg3 {[%emt 0:00:03]} Ne5 {[%emt 0:00:14]} 42. Re1 {[%emt 0:01:43]} Nc4 {[%emt 0:00:05]} 43. Nf3 {[%emt 0:00:30]} d2 {[%emt 0:00:15]} 44. Nxd2 {[%emt 0:00:06]} Nxd2 {[%emt 0:00:06]} 45. Be2 {[%emt 0:00:37]} Re8 {[%emt 0:00:02]} 46. Kf2 {[%emt 0:00:18]} Ne4+ {[%emt 0:00:04]} 47. Kf3 {[%emt 0:00:19]} Nc3 {[%emt 0:00:06] Weighted Error Value: White=0.38/Black=0.07 (flawless) .  Mistake:       	White=4     	---        Inaccurate:     	White=2     	Black=1      OK:         	White=13    	Black=19     Best:        	---       	Black=4      Strong:       	---       	Black=2} 0-1